bitfinex/quotes_ETHUSD_20241104
["timestamp","ask_amount","ask_price","bid_price","bid_amount"]
[1730705045947,4.04324,2473.3,2473.1,0.30320106]
[1730705046120,4.04324,2473.3,2473.0,4.8801522]
[1730705046320,4.04324,2473.3,2473.1,0.47748685]
[1730705046522,4.04324,2473.3,2473.0,0.8364922]
[1730705046744,4.97358335,2473.3,2473.1,0.47748731]
[1730705046947,4.04324,2473.3,2473.0,1.88955455]
[1730705047147,4.04324,2473.3,2473.0,0.0610922]
[1730705047464,4.04324,2473.3,2473.1,0.0576519]
[1730705047831,4.04312,2473.4,2473.1,0.0576519]
[1730705048042,4.97346335,2473.4,2473.1,0.0576519]
[1730705048363,0.8104,2473.3,2473.1,0.0576519]
[1730705050450,4.04312,2473.4,2473.1,0.0576519]
[1730705050690,4.44991346,2473.5,2473.1,0.0576519]
[1730705050691,9.31570346,2473.5,2473.1,4.1011419]
[1730705050868,5.27271346,2473.5,2473.1,0.0576519]
[1730705051075,4.04308,2473.4,2473.1,0.0576519]
[1730705052462,5.27271346,2473.5,2473.1,4.1011519]
[1730705052847,9.31568346,2473.5,2473.1,4.1011519]
[1730705053040,0.8228,2473.7,2473.2,0.7838]
[1730705053260,4.04272,2473.6,2473.3,0.05740185]
[1730705053472,4.04286,2473.5,2473.2,1.3338]
[1730705053677,4.04286,2473.5,2473.3,0.05740185]
[1730705053838,4.04273,2473.6,2473.2,5.37713]
[1730705054048,4.04273,2473.6,2473.3,0.36070119]
[1730705054249,4.04273,2473.6,2473.3,0.05740185]
[1730705054478,4.04273,2473.6,2473.2,5.37713]
[1730705054779,4.04273,2473.6,2473.3,0.36071477]
[1730705054978,4.04273,2473.6,2473.3,0.05740185]
[1730705055482,4.04273,2473.6,2473.4,0.05726617]
[1730705055786,4.04273,2473.6,2473.3,0.17433351]
[1730705055947,4.04273,2473.6,2473.5,0.0571305]
[1730705056147,4.04273,2473.6,2473.4,0.05726617]
[1730705056347,4.04273,2473.6,2473.5,0.0571305]
[1730705056765,4.04273,2473.6,2473.2,5.37713]
[1730705056967,0.8228,2473.7,2473.5,0.0571305]
[1730705057175,4.04271,2473.6,2473.2,5.37707]
[1730705057479,4.04271,2473.6,2473.3,1.18006473]
[1730705057685,4.04271,2473.6,2473.2,5.65609112]
[1730705057987,4.04271,2473.6,2473.3,1.18005298]
[1730705058286,4.04271,2473.6,2473.2,5.37707]
[1730705058447,4.04271,2473.6,2473.3,0.47775024]
[1730705058647,4.04271,2473.6,2473.2,5.37707]
[1730705058951,4.04271,2473.6,2473.3,0.47774832]
[1730705059150,4.04271,2473.6,2473.2,5.37707]
[1730705059350,4.04271,2473.6,2473.3,0.47777766]
[1730705059687,4.04271,2473.6,2473.2,5.37707]
[1730705059891,4.04271,2473.6,2473.3,0.47778311]
[1730705060061,4.04271,2473.6,2473.2,5.6561042]
[1730705060389,8.08548,2473.6,2473.3,0.47778388]
[1730705060546,8.08548,2473.6,2473.2,5.37711]
[1730705060749,4.04271,2473.6,2473.3,0.47779264]
[1730705060978,4.04271,2473.6,2473.2,5.37711]
[1730705061188,4.04271,2473.6,2473.3,0.47779938]
[1730705061490,4.04271,2473.6,2473.2,5.37711]
[1730705061787,4.04271,2473.6,2473.3,0.47780289]
[1730705061941,4.04271,2473.6,2473.2,5.37711]
[1730705062147,8.08548,2473.6,2473.3,0.47780112]
[1730705062381,8.08548,2473.6,2473.2,5.37711]
[1730705062585,8.08548,2473.6,2473.4,0.05727277]
[1730705062788,8.894028,2473.6,2473.3,0.05740845]
[1730705062981,8.894028,2473.6,2473.5,0.0571371]
[1730705063187,8.894028,2473.6,2473.4,0.05727277]
[1730705063383,8.894028,2473.6,2473.5,0.0571371]
[1730705063585,4.851258,2473.6,2473.5,0.0571371]
[1730705063776,4.04271,2473.6,2473.2,5.37711]
[1730705064089,4.04271,2473.6,2473.3,0.17439553]
[1730705064289,4.04271,2473.6,2473.4,0.05727277]
[1730705064584,1.45591846,2473.9,2473.4,0.05727277]
[1730705064585,4.04251,2473.8,2473.4,0.7908]
[1730705064791,4.04272,2473.6,2473.5,0.53492221]
[1730705064961,4.04272,2473.6,2473.5,0.0571371]
[1730705065558,8.08557,2473.6,2473.2,1.3408]
[1730705065778,4.04292,2473.5,2473.3,0.4777786]
[1730705066099,4.04292,2473.5,2473.2,1.84446528]
[1730705066390,4.04302,2473.4,2473.3,0.47779838]
[1730705066760,4.526892,2473.5,2473.3,0.47779838]
[1730705067075,4.04304,2473.4,2473.1,0.82908003]
[1730705067248,4.04304,2473.4,2473.2,1.18029025]
[1730705067455,4.04304,2473.4,2473.1,0.55]
[1730705067776,4.04304,2473.4,2473.2,1.18029538]
[1730705068078,4.04304,2473.4,2473.1,0.82907801]
[1730705068256,4.04304,2473.4,2473.2,0.4778181]
[1730705068457,4.526902,2473.5,2473.1,4.59344]
[1730705068790,8.0859,2473.5,2473.2,1.18028651]
[1730705068976,4.04292,2473.5,2473.2,0.47782262]
[1730705069181,4.04292,2473.5,2473.3,0.47782262]
[1730705069485,8.08587,2473.5,2473.1,4.87251778]
[1730705069796,8.08587,2473.5,2473.2,1.18027217]
[1730705069973,8.08587,2473.5,2473.3,0.30340782]
[1730705070289,4.04292,2473.5,2473.1,4.87251778]
[1730705070493,4.04292,2473.5,2473.2,1.18028147]
[1730705070700,4.04292,2473.5,2473.3,0.47781679]
[1730705070871,4.04292,2473.5,2473.1,4.87251778]
[1730705071071,4.04292,2473.5,2473.2,1.18027306]
[1730705071370,4.04292,2473.5,2473.3,0.47781517]
[1730705071572,4.04292,2473.5,2473.1,4.87251778]
[1730705071753,0.7969,2473.6,2473.2,5.22357379]
[1730705071754,4.83961,2473.6,2473.2,5.22357379]
[1730705071954,4.83961,2473.6,2473.3,0.47781616]
[1730705072158,4.04287,2473.5,2473.1,4.59344]
[1730705072386,4.04287,2473.5,2473.2,1.18027985]
[1730705072586,4.04287,2473.5,2473.3,0.47782202]
[1730705072770,4.04287,2473.5,2473.1,4.87252642]
[1730705072968,4.83961,2473.6,2473.2,5.9738764]
[1730705073172,4.04293,2473.5,2473.3,0.47781254]
[1730705073374,4.04293,2473.5,2473.1,10.56319222]
[1730705073578,4.04293,2473.5,2473.2,1.18026466]
[1730705073775,4.04293,2473.5,2473.3,0.47780999]
[1730705074069,4.04293,2473.5,2473.1,6.51980606]
[1730705074070,4.04291,2473.5,2473.1,6.51980606]
[1730705074371,8.8824,2473.6,2473.2,6.27728321]
[1730705074587,8.8824,2473.6,2473.3,0.47782245]
[1730705074899,4.04286,2473.5,2473.1,7.36451063]
[1730705075072,4.04286,2473.5,2473.2,1.18026431]
[1730705075278,4.04271,2473.6,2473.3,1.26860585]
[1730705075486,4.04271,2473.6,2473.3,0.7908]
[1730705076609,5.38921685,2473.8,2473.3,0.7908]
[1730705076935,4.04255,2473.7,2473.4,0.47777997]
[1730705077109,4.04255,2473.7,2473.3,4.83388]
[1730705077281,4.04255,2473.7,2473.4,0.47777838]
[1730705077480,4.04255,2473.7,2473.5,0.0571408]
[1730705077686,4.04255,2473.7,2473.3,6.02579798]
[1730705077687,4.04254,2473.7,2473.3,4.83388]
[1730705077887,4.04254,2473.7,2473.4,0.53504149]
[1730705078095,4.04254,2473.7,2473.4,0.05727647]
[1730705078301,4.04254,2473.7,2473.4,4.10027647]
[1730705078601,4.8393,2473.8,2473.4,4.10027647]
[1730705078808,0.7969,2473.8,2473.5,4.04285]
[1730705079125,0.7969,2474.1,2473.6,5.44048513]
[1730705079274,4.04205,2474.0,2473.6,5.44038513]
[1730705079807,4.83878,2474.1,2473.7,4.0424]
[1730705080101,8.88077,2474.1,2473.8,0.05672354]
[1730705080271,4.83878,2474.1,2473.7,8.08483]
[1730705080472,4.83878,2474.1,2473.8,0.05672354]
[1730705080695,4.04169,2474.3,2473.8,4.0423]
[1730705080888,0.7673,2474.6,2474.1,4.04181]
[1730705081118,4.80843,2474.6,2474.2,4.0978671]
[1730705081824,4.80843,2474.6,2474.2,4.8807671]
[1730705082025,4.04128,2474.5,2474.2,0.8390671]
[1730705082716,0.7673,2474.6,2474.2,4.8806771]
[1730705082916,4.04108,2474.6,2474.2,4.8806771]
[1730705083210,0.480838,2474.6,2474.2,4.8806771]
[1730705084833,4.521898,2474.6,2474.2,4.8806771]
[1730705085191,0.480838,2474.6,2474.2,4.8806771]
[1730705085387,0.480838,2474.6,2474.2,0.8390671]
[1730705085695,4.522008,2474.6,2474.2,0.8390671]
[1730705085896,4.522008,2474.6,2474.2,4.8807571]
[1730705087429,4.04117,2474.6,2474.2,4.8807571]
[1730705088662,4.8081,2474.8,2474.3,4.59143]
[1730705089013,4.04095,2474.7,2474.4,0.05586796]
[1730705089214,8.08195,2474.7,2474.4,0.05586796]
[1730705089458,4.04095,2474.7,2474.4,0.05586796]
[1730705089636,8.08193,2474.7,2474.4,0.05586796]
[1730705089841,4.04095,2474.7,2474.4,0.05586796]
[1730705090919,8.08195,2474.7,2474.4,0.05586796]
[1730705091222,4.04095,2474.7,2474.4,0.05586796]
[1730705091436,8.08198,2474.7,2474.4,0.05586796]
[1730705092226,4.04095,2474.7,2474.4,0.05586796]
[1730705092729,4.80809,2474.8,2474.4,0.05586796]
[1730705093534,4.0409,2474.7,2474.4,0.05586796]
[1730705093732,8.08191,2474.7,2474.4,0.05586796]
[1730705094553,4.0409,2474.7,2474.4,0.05586796]
[1730705096263,4.80806,2474.8,2474.4,4.09722796]
[1730705096558,4.04063,2474.9,2474.5,0.7829]
[1730705096756,4.04063,2474.9,2474.6,0.05554605]
[1730705097963,0.7673,2475.1,2474.6,0.05554605]
[1730705098122,4.80819,2474.8,2474.6,0.05554605]
[1730705098322,4.04089,2474.7,2474.3,5.37438]
[1730705098559,4.04089,2474.7,2474.4,0.05581716]
[1730705098863,8.84906,2474.8,2474.4,0.05581716]
[1730705099356,8.84899,2474.8,2474.4,4.09718716]
[1730705099555,8.84899,2474.8,2474.4,0.05581716]
[1730705099556,8.849,2474.8,2474.4,0.05581716]
[1730705099762,4.80812,2474.8,2474.4,0.05581716]
[1730705100462,4.04093,2474.7,2474.4,0.05581716]
[1730705101249,4.80812,2474.8,2474.4,0.05581716]
[1730705101452,4.80812,2474.8,2474.4,4.09711716]
[1730705102464,8.84894,2474.8,2474.4,4.09711716]
[1730705104473,4.80812,2474.8,2474.4,8.13841716]
[1730705104672,4.80812,2474.8,2474.4,4.09711716]
[1730705105176,4.04082,2474.8,2474.4,8.13840716]
[1730705105377,4.04082,2474.8,2474.4,9.09362017]
[1730705105745,4.04082,2474.8,2474.4,5.05232017]
[1730705106689,4.04082,2474.8,2474.4,9.09362017]
[1730705106847,4.04082,2474.8,2474.4,5.05232017]
[1730705107486,4.04082,2474.8,2474.4,9.09360017]
[1730705107779,4.04082,2474.8,2474.4,5.05231017]
[1730705108781,8.08167,2474.8,2474.4,5.05231017]
[1730705108985,8.08166,2474.8,2474.4,4.09709716]
[1730705109556,4.04096,2474.7,2474.4,0.05581716]
[1730705113664,4.04118,2474.6,2474.4,0.05581716]
[1730705113987,4.04122,2474.5,2474.1,4.80946]
[1730705115777,4.04139,2474.4,2474.1,0.7676]
[1730705116184,0.7797,2474.7,2474.1,4.80946]
[1730705116185,4.04105,2474.6,2474.1,4.80946]
[1730705117098,4.04122,2474.5,2474.1,4.80946]
[1730705117701,8.08256,2474.5,2474.1,4.80946]
[1730705118398,4.04122,2474.5,2474.1,4.80946]
[1730705118801,4.04122,2474.5,2474.1,4.80935]
[1730705119898,4.04138,2474.4,2474.1,0.7676]
[1730705120097,4.04122,2474.5,2474.1,4.80934]
[1730705122403,4.04122,2474.5,2474.2,0.05416372]
[1730705122972,8.08254,2474.5,2474.2,0.05416372]
[1730705123173,4.04122,2474.5,2474.2,0.05416372]
[1730705123582,8.08255,2474.5,2474.2,0.05416372]
[1730705123907,4.04122,2474.5,2474.2,0.05416372]
[1730705124403,8.08252,2474.5,2474.2,0.05416372]
[1730705125011,4.04122,2474.5,2474.2,0.05416372]
[1730705126584,8.86174,2474.7,2474.2,4.09579372]
[1730705126780,0.7596,2474.9,2474.5,4.04119]
[1730705126992,4.04063,2474.9,2474.6,0.05361997]
[1730705127888,4.04074,2474.8,2474.6,0.05361997]
[1730705128212,4.04074,2474.8,2474.7,0.05348443]
[1730705128678,4.04074,2474.8,2474.4,4.83965]
[1730705128882,4.04074,2474.8,2474.7,0.05348443]
[1730705129082,4.04074,2474.8,2474.4,4.83965]
[1730705129709,4.04074,2474.8,2474.5,0.05375552]
[1730705134013,4.04082,2474.8,2474.5,0.05375552]
[1730705134215,8.08164,2474.8,2474.5,0.05375552]
[1730705134892,4.04082,2474.8,2474.5,0.05375552]
[1730705135311,8.08169,2474.8,2474.5,0.05375552]
[1730705136205,4.04082,2474.8,2474.5,0.05375552]
[1730705136987,4.04091,2474.7,2474.5,0.05375552]
[1730705137600,4.04082,2474.8,2474.5,0.05375552]
[1730705138024,4.04052,2475.0,2474.6,4.83928]
[1730705138521,4.04052,2475.0,2474.7,0.05199456]
[1730705138717,8.08105,2475.0,2474.7,0.05199456]
[1730705139020,4.0405,2475.0,2474.7,0.05199456]
[1730705139627,8.08098,2475.0,2474.7,0.05199456]
[1730705139799,4.04048,2475.0,2474.7,0.05199456]
[1730705140000,8.08102,2475.0,2474.7,0.05199456]
[1730705140221,4.04048,2475.0,2474.7,0.05199456]
[1730705141019,8.08099,2475.0,2474.7,0.05199456]
[1730705141592,4.04057,2474.9,2474.7,0.05199456]
[1730705142927,4.04048,2475.0,2474.7,0.05199456]
[1730705143227,8.08101,2475.0,2474.7,0.05199456]
[1730705143534,4.04057,2474.9,2474.7,0.05199456]
[1730705143892,4.04073,2474.8,2474.7,0.05199456]
[1730705144611,4.04057,2474.9,2474.7,0.05199456]
[1730705144818,4.04043,2475.0,2474.7,0.05199456]
[1730705145342,4.04032,2475.1,2474.7,4.09280456]
[1730705145630,4.0404,2475.0,2474.7,0.94524302]
[1730705146828,4.04024,2475.1,2474.7,4.98607302]
[1730705147129,8.08062,2475.1,2474.7,4.98607302]
[1730705147994,4.04024,2475.1,2474.7,4.98607302]
[1730705148322,8.0806,2475.1,2474.7,4.98607302]
[1730705148528,4.04024,2475.1,2474.7,4.98607302]
[1730705148696,4.04018,2475.2,2474.9,0.7575]
[1730705149127,4.04018,2475.2,2475.0,0.05158504]
[1730705149447,4.04,2475.3,2475.0,0.05158504]
[1730705149901,4.04008,2475.2,2475.0,0.05158504]
[1730705150398,4.04001,2475.3,2475.1,0.7575]
[1730705150706,4.04001,2475.3,2475.2,0.05131405]
[1730705157532,4.04008,2475.2,2474.9,0.7575]
[1730705161496,4.84408,2475.2,2474.9,0.7575]
[1730705161735,4.0405,2475.0,2474.6,4.79848]
[1730705161941,4.0405,2475.0,2474.7,0.55]
[1730705162104,4.0403,2475.1,2474.7,0.55]
[1730705162299,4.04047,2475.0,2474.7,0.55]
[1730705163242,4.0403,2475.1,2474.7,4.59085]
[1730705163452,4.04041,2475.0,2474.7,4.59085]
[1730705164248,4.04041,2475.0,2474.6,4.79851]
[1730705164741,4.04057,2474.9,2474.6,0.7575]
[1730705166009,4.04085,2474.8,2474.3,11.53145]
[1730705166252,4.04103,2474.7,2474.4,0.7575]
[1730705166453,4.04112,2474.6,2474.2,4.79914]
[1730705166611,4.84512,2474.6,2474.2,4.79914]
[1730705167424,4.84512,2474.6,2474.3,0.05248087]
[1730705169041,4.04112,2474.6,2474.3,0.05248087]
[1730705169728,4.04091,2474.7,2474.3,4.74378702]
[1730705170716,4.04106,2474.6,2474.3,0.70236702]
[1730705170929,4.04106,2474.6,2474.3,0.05248087]
[1730705177344,8.08194,2474.7,2474.3,4.09401087]
[1730705177542,4.04109,2474.6,2474.3,0.05248087]
[1730705180190,8.08191,2474.7,2474.3,4.09398087]
[1730705180477,4.04089,2474.7,2474.3,4.09398087]
[1730705180649,8.08191,2474.7,2474.3,4.09398087]
[1730705181169,4.04089,2474.7,2474.3,0.05248087]
[1730705181347,4.04107,2474.6,2474.3,0.05248087]
[1730705182585,4.04089,2474.7,2474.3,5.74117149]
[1730705182885,4.0405,2475.0,2474.6,0.8299]
[1730705183047,4.0407,2474.9,2474.6,0.8299]
[1730705183385,4.0407,2474.9,2474.7,0.05195997]
[1730705183586,0.7939,2475.1,2474.7,0.05195997]
[1730705183744,4.0406,2474.9,2474.7,0.05195997]
[1730705185477,4.04073,2474.8,2474.7,0.05195997]
[1730705185697,4.04073,2474.8,2474.4,5.40897]
[1730705185910,4.04073,2474.8,2474.7,0.05194819]
[1730705186051,4.04073,2474.8,2474.4,5.40897]
[1730705186379,4.04073,2474.8,2474.7,0.05194819]
[1730705186993,4.04073,2474.8,2474.4,5.40897]
[1730705187188,4.04073,2474.8,2474.7,0.05194819]
[1730705187493,4.0406,2474.9,2474.7,0.05194819]
[1730705187494,8.0813,2474.9,2474.7,0.05194819]
[1730705187651,8.0813,2474.9,2474.5,4.04121]
[1730705187857,4.0406,2474.9,2474.8,0.05180164]
[1730705188191,4.0406,2474.9,2474.5,4.04121]
[1730705188494,4.0406,2474.9,2474.5,5.15095206]
[1730705188658,4.0406,2474.9,2474.6,0.05207271]
[1730705201882,0.7892,2474.8,2474.6,0.05207271]
[1730705202798,4.82998,2474.8,2474.6,0.05207271]
[1730705203000,4.04089,2474.7,2474.6,0.05207271]
[1730705203187,4.0411,2474.6,2474.3,0.47690408]
[1730705203383,0.7892,2474.8,2474.3,4.59154]
[1730705203585,4.04093,2474.7,2474.3,4.59154]
[1730705204881,4.04106,2474.6,2474.3,4.59154]
[1730705207619,4.82997,2474.8,2474.3,4.59154]
[1730705207912,4.04092,2474.7,2474.4,0.85192987]
[1730705208077,4.04092,2474.7,2474.3,6.23870062]
[1730705209410,4.04092,2474.7,2474.4,0.30309919]
[1730705209574,4.04092,2474.7,2474.3,6.23870062]
[1730705209780,4.04092,2474.7,2474.4,0.30309705]
[1730705210115,4.04092,2474.7,2474.3,6.23870062]
[1730705210815,4.04107,2474.6,2474.3,0.55]
[1730705210988,4.8305,2474.5,2474.1,0.84474922]
[1730705211187,0.7892,2474.5,2474.2,0.47732692]
[1730705211418,4.04138,2474.4,2474.1,0.55]
[1730705211576,4.04138,2474.4,2474.2,0.30320986]
[1730705211773,4.04138,2474.4,2474.1,0.55]
[1730705211996,4.04138,2474.4,2474.2,0.30321375]
[1730705212214,4.04138,2474.4,2474.1,0.55]
[1730705212383,4.04138,2474.4,2474.3,0.05247939]
[1730705212892,4.04138,2474.4,2474.2,0.477312]
[1730705213091,4.04138,2474.4,2474.3,0.05247939]
[1730705213399,0.7892,2474.5,2474.2,0.17411247]
[1730705213602,4.04085,2474.8,2474.4,0.7727]
[1730705213781,4.04093,2474.7,2474.4,0.7727]
[1730705214716,4.04093,2474.7,2474.5,0.05222517]
[1730705215014,4.04105,2474.6,2474.5,0.05222517]
[1730705218518,0.7711,2475.1,2474.5,1.69946579]
[1730705218815,4.04048,2475.0,2474.7,1.64724062]
[1730705219181,4.04048,2475.0,2474.8,0.05182002]
[1730705219494,4.0403,2475.1,2474.9,0.0516845]
[1730705219690,4.0401,2475.2,2474.8,0.55]
[1730705220016,4.0401,2475.2,2475.0,0.05154899]
[1730705220219,4.0401,2475.2,2474.9,0.0516845]
[1730705220384,4.0401,2475.2,2474.8,5.31651172]
[1730705220385,4.0401,2475.2,2475.1,0.05141349]
[1730705220585,4.0401,2475.2,2474.8,5.31651172]
[1730705220798,4.0401,2475.2,2475.1,0.05141349]
[1730705221023,4.0401,2475.2,2474.8,5.31651172]
[1730705221313,4.0401,2475.2,2474.9,1.10046123]
[1730705221517,0.7711,2475.3,2474.9,5.96538573]
[1730705221518,4.81102,2475.3,2474.9,5.96538573]
[1730705221879,4.04009,2475.2,2474.9,1.92484573]
[1730705223025,4.04024,2475.1,2474.9,0.8243845]
[1730705223323,4.04024,2475.1,2474.9,0.0516845]
[1730705223883,4.0404,2475.0,2474.9,0.0516845]
[1730705224086,4.04078,2474.8,2474.5,0.7727]
[1730705224282,4.04078,2474.8,2474.6,0.55]
[1730705224283,8.08161,2474.8,2474.6,0.55]
[1730705224493,4.04078,2474.8,2474.5,0.55]
[1730705224719,4.04078,2474.8,2474.4,0.55]
[1730705224933,4.04113,2474.6,2474.3,0.7727]
[1730705225299,4.04113,2474.6,2474.4,0.47711205]
[1730705225622,4.04081,2474.8,2474.3,6.46137062]
[1730705225781,4.04081,2474.8,2474.4,0.30307349]
[1730705225984,8.08166,2474.8,2474.3,6.54219255]
[1730705226204,4.04091,2474.7,2474.3,6.46137062]
[1730705226417,4.04091,2474.7,2474.3,6.54219474]
[1730705227136,4.04091,2474.7,2474.3,6.46137062]
[1730705227626,4.04059,2474.9,2474.4,0.05233204]
[1730705227800,8.08126,2474.9,2474.5,4.59112]
[1730705228212,8.08126,2474.9,2474.6,0.82476387]
[1730705230600,4.04059,2474.9,2474.6,0.82476387]
[1730705230802,4.04074,2474.8,2474.6,0.82476387]
[1730705231402,4.81161,2475.0,2474.6,0.82476387]
[1730705231601,4.04069,2474.9,2474.6,0.82476387]
[1730705232224,4.04044,2475.0,2474.7,0.55]
[1730705232527,4.04044,2475.0,2474.8,0.05178323]
[1730705232706,4.04044,2475.0,2474.7,0.55]
[1730705232901,4.04044,2475.0,2474.9,0.05164771]
[1730705233123,4.04044,2475.0,2474.7,0.55]
[1730705233324,4.04044,2475.0,2474.9,0.05164771]
[1730705233532,4.04044,2475.0,2474.7,0.55]
[1730705233692,4.04044,2475.0,2474.9,0.05164771]
[1730705233894,4.04044,2475.0,2474.7,0.55]
[1730705234126,4.04044,2475.0,2474.9,0.05164771]
[1730705234328,4.04044,2475.0,2474.7,0.55]
[1730705234532,4.04044,2475.0,2474.9,0.05164771]
[1730705234825,4.04066,2474.9,2474.7,0.55]
[1730705242543,4.04066,2474.9,2474.8,0.05179133]
[1730705242708,4.04066,2474.9,2474.7,0.55]
[1730705243030,4.04066,2474.9,2474.8,0.05179133]
[1730705243420,4.04066,2474.9,2474.7,0.55]
[1730705243622,4.04066,2474.9,2474.8,0.05179133]
[1730705243830,4.04047,2475.0,2474.8,0.05179133]
[1730705244043,4.82253,2475.2,2474.8,4.58222013]
[1730705244223,4.04023,2475.2,2474.9,0.84745581]
[1730705244528,4.04022,2475.2,2474.9,0.84745581]
[1730705245234,4.04031,2475.1,2474.9,0.84745581]
[1730705245445,4.0401,2475.2,2474.9,0.84745581]
[1730705245597,4.03924275,2475.2,2474.9,1.61016847]
[1730705246007,8.07947275,2475.2,2474.9,1.61016847]
[1730705246842,4.03924275,2475.2,2474.9,1.61016847]
[1730705248342,4.04028,2475.1,2474.9,1.61016847]
[1730705248543,4.04028,2475.1,2474.9,0.84745581]
[1730705249044,4.03924275,2475.2,2474.9,0.84745581]
[1730705249536,4.04024,2475.1,2474.9,0.84745581]
[1730705252942,4.03924275,2475.2,2474.9,0.84745581]
[1730705253142,4.03995,2475.3,2474.9,4.88799581]
[1730705253347,4.03995,2475.3,2475.0,0.55]
[1730705253507,4.83626,2475.4,2475.0,4.6418344]
[1730705253708,7.83594,2475.6,2475.1,1.64724062]
[1730705254048,4.03961,2475.5,2475.2,0.7958]
[1730705254447,4.03961,2475.5,2475.3,0.05110794]
[1730705254744,4.03961,2475.5,2475.2,0.7958]
[1730705255049,4.03961,2475.5,2475.4,0.05097248]
[1730705255217,4.03961,2475.5,2475.3,0.05110794]
[1730705255545,4.03961,2475.5,2475.4,0.05097248]
[1730705255740,4.03961,2475.5,2475.2,1.90315306]
[1730705255944,4.03961,2475.5,2475.4,0.05097248]
[1730705256111,4.03961,2475.5,2475.2,1.90315306]
[1730705256306,4.03991,2475.3,2475.2,1.90315306]
[1730705256626,4.03982,2475.4,2475.2,0.7958]
[1730705256844,8.07968,2475.4,2475.2,0.7958]
[1730705257412,0.7964,2475.6,2475.2,0.7958]
[1730705257413,4.03991,2475.3,2475.2,0.7958]
[1730705257945,4.03979,2475.4,2475.0,5.46698905]
[1730705258953,4.03979,2475.4,2475.0,5.38619]
[1730705259112,4.03979,2475.4,2475.0,6.73190576]
[1730705260441,4.03979,2475.4,2475.0,6.65110671]
[1730705260938,4.03979,2475.4,2475.0,6.73190576]
[1730705261442,4.03994,2475.3,2475.1,0.0513789]
[1730705266560,4.84334,2475.3,2475.1,0.0513789]
[1730705270257,4.84305,2475.5,2475.2,0.55]
[1730705270549,4.03946,2475.6,2475.3,0.05110574]
[1730705270851,4.03946,2475.6,2475.2,4.59005]
[1730705271013,4.03958,2475.5,2475.4,0.05097028]
[1730705271222,4.03958,2475.5,2475.2,0.55]
[1730705271458,4.03958,2475.5,2475.4,0.05097028]
[1730705271665,4.03958,2475.5,2475.3,0.05110574]
[1730705271950,4.03958,2475.5,2475.4,0.05097028]
[1730705272178,4.03958,2475.5,2475.2,0.55]
[1730705272314,4.03958,2475.5,2475.4,0.05097028]
[1730705272511,4.03958,2475.5,2475.2,0.55]
[1730705272710,4.03958,2475.5,2475.3,0.05110574]
[1730705273016,4.03958,2475.5,2475.2,0.55]
[1730705273217,4.03958,2475.5,2475.4,0.05097028]
[1730705273436,8.07932,2475.5,2475.2,0.55]
[1730705273754,4.03975,2475.4,2475.3,0.05110574]
[1730705273957,4.0395,2475.6,2475.2,4.59005]
[1730705274255,4.0395,2475.6,2475.4,0.55]
[1730705274622,4.0395,2475.6,2475.5,0.05082011]
[1730705281787,4.8429,2475.6,2475.5,0.05082011]
[1730705281985,4.8429,2475.6,2475.1,0.41995002]
[1730705281986,4.03993,2475.3,2475.2,0.55]
[1730705283681,4.03993,2475.3,2475.1,0.41995002]
[1730705284500,4.03975,2475.4,2475.1,0.41995002]
[1730705284779,8.07959,2475.4,2475.1,0.41995002]
[1730705284995,4.03975,2475.4,2475.1,0.41995002]
[1730705285784,4.03993,2475.3,2475.1,0.41995002]
[1730705287492,4.03993,2475.3,2475.2,0.05119562]
[1730705290191,4.85793,2475.3,2475.2,0.05119562]
[1730705290403,5.747699,2475.3,2475.2,0.05119562]
[1730705290772,5.747699,2475.3,2474.8,0.47628965]
[1730705290978,4.04027,2475.1,2474.9,0.05160211]
[1730705291179,4.04027,2475.1,2474.8,0.47630223]
[1730705291389,4.04027,2475.1,2474.9,0.05160211]
[1730705291590,4.04027,2475.1,2474.7,6.85818418]
[1730705291887,4.04027,2475.1,2474.8,0.60173763]
[1730705297603,4.04009,2475.2,2474.8,5.88533805]
[1730705297802,4.04009,2475.2,2474.9,1.64724062]
[1730705298011,4.04009,2475.2,2475.0,0.0514688]
[1730705302809,4.85794,2475.3,2475.0,0.0514688]
[1730705303182,4.04013,2475.2,2475.0,0.0514688]
[1730705303799,4.85794,2475.3,2475.0,0.0514688]
[1730705303971,0.7723,2475.5,2475.1,2.19724062]
[1730705304173,7.81169,2475.7,2475.3,1.64724062]
[1730705304376,7.81169,2475.7,2475.2,4.09124782]
[1730705304377,4.03952,2475.6,2475.4,0.05093496]
[1730705304576,4.03952,2475.6,2475.2,8.83342]
[1730705304770,8.07864,2475.7,2475.4,0.55]
[1730705305086,4.03944,2475.6,2475.5,0.05079951]
[1730705306297,4.81174,2475.6,2475.5,0.05079951]
[1730705307337,4.03989,2475.4,2475.1,0.55]
[1730705307834,4.03894,2475.9,2475.3,2.95064062]
[1730705307835,0.7723,2475.9,2475.3,2.95064062]
[1730705308135,4.03945,2475.6,2475.3,2.95064062]
[1730705308300,4.03945,2475.6,2475.4,0.69906206]
[1730705308737,4.03921,2475.8,2475.4,0.69906206]
[1730705309034,4.03933,2475.7,2475.4,0.69906206]
[1730705310996,4.03943,2475.6,2475.4,0.69906206]
[1730705313438,4.03943,2475.6,2475.3,1.3034]
[1730705313664,4.03943,2475.6,2475.2,4.04003]
[1730705313665,4.03971,2475.5,2475.2,0.55]
[1730705314362,4.03977,2475.4,2475.2,0.55]
[1730705315245,4.03977,2475.4,2475.1,0.55]
[1730705315560,8.0796,2475.4,2475.1,0.55]
[1730705315773,8.0796,2475.4,2475.0,4.0404]
[1730705315774,4.03994,2475.3,2475.0,0.55]
[1730705316060,4.03994,2475.3,2475.0,1.59376488]
[1730705316431,4.81208,2475.4,2475.0,5.63414488]
[1730705316637,4.81208,2475.4,2475.1,1.64724062]
[1730705316941,8.85194,2475.4,2475.1,1.64724062]
[1730705317143,4.81208,2475.4,2475.1,1.64724062]
[1730705317560,4.81208,2475.4,2475.2,0.05117357]
[1730705318419,4.03991,2475.3,2475.2,0.05117357]
[1730705318861,4.03991,2475.3,2475.0,0.85260871]
[1730705319157,4.03991,2475.3,2475.2,0.0511765]